bitfinex/quotes_SOLUSD_20250602
["timestamp","ask_amount","ask_price","bid_price","bid_amount"]
[1748895211876,38.05870474,154.35,154.33,17.29947192]
[1748895212060,38.05870474,154.34,154.33,17.29947192]
[1748895212462,38.05870474,154.34,154.33,10.82]
[1748895212779,38.05870474,154.34,154.33,17.29962159]
[1748895215655,38.05870474,154.34,154.29,10.82]
[1748895215859,38.05870474,154.4,154.29,17.30114639]
[1748895215860,38.05870474,154.3,154.29,17.30114639]
[1748895216575,1.5956,154.41,154.29,71.56310474]
[1748895216885,38.05870474,154.38,154.33,38.05870474]
[1748895217064,38.05870474,154.37,154.34,40.68]
[1748895217385,38.05870474,154.36,154.34,40.68]
[1748895217584,38.05870474,154.36,154.35,6.47878198]
[1748895218464,38.05870474,154.36,154.3,22.6830611]
[1748895218688,26.0,154.39,154.31,40.66]
[1748895218857,38.05870474,154.35,154.31,40.66]
[1748895219058,38.05870474,154.34,154.31,40.66]
[1748895219890,26.0,154.39,154.32,22.68014515]
[1748895220069,38.05870474,154.35,154.32,22.68014515]
[1748895220385,38.05870474,154.37,154.33,38.05870474]
[1748895220576,1.5956,154.41,154.35,38.05870474]
[1748895220757,38.05870474,154.39,154.36,51.48]
[1748895220957,1.5956,154.41,154.36,51.48]
[1748895221170,38.05870474,154.39,154.36,51.48]
[1748895222175,38.05870474,154.39,154.37,6.4779426]
[1748895223184,38.05870474,154.4,154.37,22.67279911]
[1748895223486,38.05870474,154.42,154.37,60.73150385]
[1748895223688,1.6429,154.45,154.39,38.05870474]
[1748895223984,38.05870474,154.43,154.4,40.62]
[1748895224182,38.05870474,154.42,154.41,6.47626449]
[1748895225404,38.05870474,154.42,154.4,47.09661335]
[1748895225569,38.05870474,154.41,154.4,47.09661335]
[1748895226680,38.05870474,154.41,154.37,22.67182686]
[1748895226871,38.05870474,154.4,154.38,40.6]
[1748895227582,1.6429,154.45,154.38,78.65870474]
[1748895227783,1.6429,154.45,154.39,38.05870474]
[1748895228098,38.05870474,154.43,154.39,38.05870474]
[1748895228793,38.05870474,154.43,154.4,22.66839377]
[1748895229308,7.9744337,154.47,154.4,60.72709851]
[1748895229608,38.05870474,154.46,154.41,38.05870474]
[1748895229777,38.05870474,154.45,154.42,51.42]
[1748895229976,7.9744337,154.47,154.42,51.42]
[1748895230177,38.05870474,154.45,154.42,51.42]
[1748895230388,38.05870474,154.43,154.42,10.82]
[1748895230868,38.05870474,154.43,154.42,17.29584509]
[1748895231570,38.05870474,154.43,154.42,10.82]
[1748895231993,38.05870474,154.43,154.42,17.29584509]
[1748895236985,38.05870474,154.43,154.42,10.82]
[1748895237298,7.9744337,154.47,154.42,33.48545783]
[1748895237488,38.05870474,154.46,154.42,33.48545783]
[1748895237688,38.05870474,154.44,154.43,40.64]
[1748895239207,38.05870474,154.44,154.43,47.11542575]
[1748895240300,27.539,154.49,154.43,47.11542575]
[1748895240486,38.05870474,154.45,154.43,47.11542575]
[1748895245805,27.539,154.49,154.43,40.54]
[1748895245806,38.05870474,154.44,154.43,40.54]
[1748895245982,27.539,154.49,154.43,40.54]
[1748895246183,38.05870474,154.48,154.43,78.59870474]
[1748895246483,38.05870474,154.45,154.43,40.54]
[1748895247304,22.8649355,154.45,154.43,40.54]
[1748895247702,22.8649355,154.45,154.44,6.47500647]
[1748895249208,22.8649355,154.45,154.44,47.03500647]
[1748895249408,22.8649355,154.45,154.42,17.29566694]
[1748895249725,22.8649355,154.43,154.42,10.82]
[1748895250017,22.8649355,154.43,154.38,17.27752299]
[1748895250228,22.8649355,154.39,154.38,57.85752299]
[1748895250883,22.8649355,154.39,154.38,17.27752299]
[1748895251085,22.8649355,154.39,154.38,57.85752299]
[1748895251688,26.0,154.44,154.38,74.05133047]
[1748895251897,22.8649355,154.41,154.38,74.05133047]
[1748895252501,1.6356,154.46,154.38,96.91626597]
[1748895252708,22.8649355,154.44,154.39,22.8649355]
[1748895253112,22.8649355,154.44,154.4,22.66839377]
[1748895253420,22.8649355,154.42,154.4,6.47668393]
[1748895253598,22.8649355,154.41,154.4,6.47668393]
[1748895254393,22.8649355,154.41,154.4,47.05668393]
[1748895255108,22.8649355,154.41,154.4,40.58]
[1748895255415,38.13727141,154.41,154.4,47.05668393]
[1748895256199,38.13727141,154.41,154.4,40.58]
[1748895257505,38.13727141,154.41,154.4,47.05668393]
[1748895259401,1.6356,154.46,154.4,63.24839377]
[1748895259601,148.0553,154.5,154.42,38.13727141]
[1748895259812,38.13727141,154.5,154.46,38.13727141]
[1748895260122,38.13727141,154.5,154.47,51.36]
[1748895260422,38.13727141,154.49,154.47,51.36]
[1748895261216,28.5488113,154.54,154.47,51.36]
[1748895261217,38.13727141,154.5,154.47,51.36]
[1748895261598,38.13727141,154.51,154.48,6.47332988]
[1748895262317,38.13727141,154.5,154.48,6.47332988]
[1748895262896,38.13727141,154.49,154.48,6.47332988]
[1748895263411,38.13727141,154.5,154.48,6.47332988]
[1748895263609,26.0,154.53,154.48,22.65665458]
[1748895263610,38.13727141,154.51,154.48,22.65665458]
[1748895264213,38.13727141,154.5,154.48,22.65665458]
[1748895264421,38.13727141,154.49,154.48,6.47332988]
[1748895270699,2.5488113,154.54,154.48,6.47332988]
[1748895270924,38.13727141,154.52,154.48,44.61060129]
[1748895271228,38.13727141,154.52,154.48,60.79392599]
[1748895272031,0.8935113,154.54,154.48,60.79392599]
[1748895272211,38.13727141,154.53,154.48,60.79392599]
[1748895272913,38.13727141,154.52,154.48,60.79392599]
[1748895273317,0.8935113,154.54,154.48,22.65665458]
[1748895273318,38.13727141,154.51,154.48,22.65665458]
[1748895273509,38.13727141,154.49,154.48,22.65665458]
[1748895274030,38.13727141,154.49,154.48,63.07665458]
[1748895274418,38.13727141,154.49,154.48,6.47332988]
[1748895274805,38.13727141,154.49,154.47,10.8]
[1748895275010,38.13727141,154.48,154.47,10.8]
[1748895275330,22.86285509,154.48,154.47,10.8]
[1748895275932,22.86285509,154.48,154.47,17.27374894]
[1748895277036,22.86285509,154.48,154.47,10.8]
[1748895277936,45.72571018,154.48,154.43,10.78]
[1748895278135,22.86285509,154.44,154.43,10.78]
[1748895278335,22.86285509,154.44,154.43,17.25542575]
[1748895278517,22.86285509,154.44,154.43,10.78]
[1748895279044,22.86285509,154.44,154.4,133.64]
[1748895279243,22.86285509,154.41,154.4,93.22]
[1748895279450,22.86285509,154.41,154.4,133.64]
[1748895279740,22.86285509,154.41,154.4,140.11651805]
[1748895280112,22.86285509,154.41,154.4,140.13651805]
[1748895280414,22.86285509,154.41,154.4,140.11651805]
[1748895280763,22.86285509,154.41,154.4,99.69651805]
[1748895281322,38.13629638,154.41,154.4,99.69651805]
[1748895282736,26.0,154.45,154.4,99.69651805]
[1748895283108,38.13629638,154.41,154.4,99.69651805]
[1748895283629,38.13629638,154.43,154.4,115.88822789]
[1748895283829,38.13629638,154.41,154.4,99.69651805]
[1748895284535,38.13629638,154.41,154.4,6.47651805]
[1748895289118,38.13629638,154.41,154.39,17.25700406]
[1748895289324,38.13629638,154.4,154.39,57.61700406]
[1748895290243,38.13629638,154.4,154.39,17.25700406]
[1748895290537,38.13629638,154.4,154.39,57.59700406]
[1748895291220,38.13629638,154.4,154.39,17.25700406]
[1748895291421,38.13629638,154.4,154.39,57.59700406]
[1748895293052,38.13629638,154.41,154.39,57.59700406]
[1748895293236,38.13629638,154.42,154.39,73.78976265]
[1748895293941,38.13629638,154.42,154.4,40.32]
[1748895295251,38.13629638,154.43,154.41,6.47626449]
[1748895295779,38.13629638,154.44,154.41,6.47626449]
[1748895295945,38.13629638,154.44,154.41,22.66692571]
[1748895297227,26.0,154.47,154.41,22.66692571]
[1748895297432,38.13629638,154.44,154.41,22.66692571]
[1748895298339,38.13629638,154.45,154.41,22.66692571]
[1748895299654,38.13629638,154.47,154.42,38.13629638]
[1748895299839,38.13629638,154.47,154.43,40.28]
[1748895300028,38.13629638,154.47,154.44,10.66]
[1748895300231,38.13629638,154.48,154.45,6.47458724]
[1748895300430,38.13629638,154.49,154.46,40.28]
[1748895300633,38.13629638,154.48,154.46,40.28]
[1748895300842,38.13629638,154.47,154.46,40.28]
[1748895301254,38.13629638,154.47,154.44,57.41485166]
[1748895301457,22.86748921,154.45,154.44,57.41485166]
[1748895302651,22.86748921,154.49,154.44,96.46985705]
[1748895302950,22.86748921,154.49,154.45,22.86748921]
[1748895303149,22.86748921,154.52,154.44,73.60236784]
[1748895303354,0.8935113,154.54,154.44,73.60236784]
[1748895303355,22.86748921,154.47,154.44,73.60236784]
[1748895303752,22.86748921,154.46,154.44,6.47485166]
[1748895303944,22.86748921,154.46,154.45,50.96]
[1748895304145,22.86748921,154.46,154.45,10.66]
[1748895304353,22.86748921,154.46,154.45,57.43458724]
[1748895305157,22.86748921,154.46,154.45,17.13458724]
[1748895305362,22.86748921,154.46,154.45,57.43458724]
[1748895306362,1.5959,154.49,154.45,57.43458724]
[1748895306662,22.86748921,154.46,154.45,57.43458724]
[1748895308367,1.5959,154.49,154.45,57.43458724]
[1748895308540,22.86748921,154.47,154.45,57.43458724]
[1748895308742,22.86748921,154.46,154.45,57.43458724]
[1748895311360,22.86748921,154.46,154.45,50.96]
[1748895311561,22.86748921,154.46,154.41,10.66]
[1748895311873,22.86748921,154.48,154.41,50.88]
[1748895311874,22.86748921,154.42,154.41,50.88]
[1748895312162,154.1693,154.49,154.41,50.88]
[1748895312163,22.86748921,154.45,154.41,50.88]
[1748895313137,22.86748921,154.44,154.41,50.88]
[1748895313763,22.86748921,154.44,154.42,6.47584509]
[1748895314268,22.86748921,154.43,154.42,6.47584509]
[1748895315561,22.86748921,154.43,154.41,50.88]
[1748895315759,22.86748921,154.42,154.41,50.88]
[1748895316388,22.86748921,154.42,154.41,57.35621208]
[1748895316559,22.86748921,154.42,154.41,57.33621208]
[1748895316758,22.86748921,154.42,154.41,17.13621208]
[1748895317267,22.86748921,154.42,154.41,10.66]
[1748895317470,22.86748921,154.42,154.41,17.13626449]
[1748895317668,22.86748921,154.42,154.41,10.66]
[1748895324483,22.86748921,154.42,154.34,6.47920176]
[1748895324683,22.86748921,154.4,154.35,10.56]
[1748895324888,22.86748921,154.36,154.35,10.56]
[1748895325671,26.0,154.4,154.35,10.56]
[1748895325875,22.86748921,154.36,154.35,10.56]
[1748895326796,22.86748921,154.36,154.35,17.03878198]
[1748895327870,22.86748921,154.36,154.35,10.56]
[1748895328072,22.86748921,154.36,154.32,99.71994569]
[1748895328287,22.86748921,154.33,154.32,139.87994569]
[1748895329003,22.86748921,154.33,154.32,99.71994569]
[1748895329165,22.86748921,154.33,154.32,139.87994569]
[1748895329369,22.86748921,154.33,154.31,10.56]
[1748895329591,45.73497842,154.32,154.31,10.56]
[1748895329900,22.86748921,154.32,154.31,10.56]
[1748895331185,26.0,154.35,154.31,17.0404614]
[1748895331381,22.86748921,154.33,154.31,17.0404614]
[1748895331769,22.86748921,154.32,154.31,10.56]
[1748895331971,22.86748921,154.32,154.25,1.5274]
[1748895331972,47.35827842,154.32,154.23,22.69334284]
[1748895332278,22.86748921,154.26,154.24,50.78]
[1748895332896,22.86748921,154.29,154.25,63.08748921]
[1748895333077,22.86748921,154.29,154.26,6.4825619]
[1748895333398,22.86748921,154.27,154.26,6.4825619]
[1748895333971,22.86748921,154.27,154.25,40.22]
[1748895334301,22.86748921,154.27,154.24,10.56]
[1748895334302,22.86748921,154.26,154.24,10.56]
[1748895334508,22.86748921,154.25,154.24,10.56]
[1748895336378,22.86748921,154.25,154.22,93.26]
[1748895336578,22.86748921,154.23,154.22,93.26]
[1748895336885,22.86748921,154.23,154.21,46.70458795]
[1748895337074,22.86748921,154.22,154.21,46.70458795]
[1748895337500,26.0,154.28,154.21,46.70458795]
[1748895337683,22.86748921,154.24,154.21,46.70458795]
[1748895337890,22.86748921,154.23,154.21,46.70458795]
[1748895338387,146.4,154.29,154.21,85.78373658]
[1748895338577,22.86748921,154.28,154.24,22.86748921]
[1748895338776,22.86748921,154.27,154.25,50.76]
[1748895338978,8.22386955,154.3,154.25,50.76]
[1748895338979,22.86748921,154.26,154.25,50.76]
[1748895341610,22.86748921,154.26,154.25,10.56]
[1748895342185,22.86748921,154.26,154.21,10.58]
[1748895342387,22.86748921,154.22,154.21,40.24]
[1748895342882,22.86748921,154.22,154.2,10.58]
[1748895343074,22.86748921,154.21,154.2,10.58]
[1748895344575,22.86748921,154.21,154.2,17.0650843]
[1748895344804,26.0,154.26,154.2,39.93257351]
[1748895345111,22.86748921,154.25,154.21,22.86748921]
[1748895345302,22.86748921,154.24,154.23,6.48382286]
[1748895345999,172.4,154.28,154.23,6.48382286]
[1748895346192,22.86748921,154.24,154.23,6.48382286]
[1748895346499,22.86748921,154.26,154.23,6.48382286]
[1748895347700,31.09135876,154.3,154.25,22.86748921]
[1748895347886,8.22386955,154.3,154.27,22.86748921]
[1748895348088,8.22386955,154.3,154.26,73.74748921]
[1748895348409,31.09135876,154.3,154.26,73.74748921]
[1748895348703,22.86748921,154.28,154.23,22.69338001]
[1748895348908,22.86748921,154.26,154.24,50.88]
[1748895349080,22.86748921,154.25,154.24,10.58]
[1748895349601,22.86748921,154.25,154.24,57.38340248]
[1748895352004,34.22386955,154.3,154.24,57.38340248]
[1748895352005,22.86748921,154.26,154.24,57.38340248]
[1748895352498,22.86748921,154.25,154.24,57.38340248]
[1748895353909,22.86748921,154.26,154.24,57.38340248]
[1748895354118,22.86748921,154.28,154.24,80.25089169]
[1748895354404,22.86748921,154.28,154.24,73.5919087]
[1748895357708,22.86748921,154.27,154.24,57.38340248]
[1748895359109,22.86748921,154.25,154.23,10.62]
[1748895359315,22.86748921,154.24,154.23,50.84]
[1748895359820,22.86748921,154.24,154.23,10.62]
[1748895359987,22.86748921,154.24,154.23,50.82]
[1748895360895,29.34771563,154.32,154.23,50.82]
[1748895361097,22.86748921,154.3,154.25,22.86748921]
[1748895361295,22.86748921,154.3,154.26,40.22]
[1748895361494,22.86748921,154.29,154.26,40.22]
[1748895361714,22.86748921,154.27,154.24,6.48340248]
[1748895361886,22.86748921,154.25,154.24,6.48340248]
[1748895362086,22.86748921,154.25,154.24,50.84]
[1748895362300,22.86748921,154.25,154.24,10.62]
[1748895362510,22.86748921,154.25,154.24,50.84]
[1748895362901,22.86748921,154.25,154.24,10.62]
[1748895363203,22.86748921,154.25,154.24,50.84]
[1748895364511,22.86748921,154.25,154.24,10.62]
[1748895364815,22.86748921,154.25,154.24,50.82]
[1748895365018,22.86748921,154.25,154.24,10.62]
[1748895365321,22.86748921,154.25,154.19,109.57278467]
[1748895365322,45.73497842,154.25,154.19,110.46537283]
[1748895365619,22.86748921,154.24,154.2,40.2]
[1748895366388,22.86748921,154.24,154.19,110.46537283]
[1748895366633,22.86748921,154.24,154.2,40.18]
[1748895366800,22.86748921,154.21,154.19,144.16]
[1748895366994,22.86748921,154.2,154.19,144.16]
[1748895367915,22.86748921,154.21,154.19,150.64550489]
[1748895368123,22.86748921,154.22,154.19,150.64550489]
[1748895368303,22.86748921,154.21,154.19,99.84550489]
[1748895368492,22.86748921,154.21,154.2,50.8]
[1748895369897,22.86748921,154.21,154.2,57.2850843]
[1748895370097,9.55905417,154.27,154.2,57.2850843]
[1748895370296,30.87264338,154.27,154.22,22.86748921]
[1748895370500,8.00515417,154.27,154.24,6.48340248]
[1748895370707,8.00515417,154.27,154.25,10.62]
[1748895370918,8.00515417,154.27,154.26,40.2]
[1748895372206,8.00515417,154.27,154.26,63.06748921]
[1748895372398,8.00515417,154.27,154.26,69.55005111]
[1748895373207,8.00515417,154.27,154.26,84.86645139]
[1748895374507,8.00515417,154.27,154.26,112.22558496]
[1748895379626,8.00515417,154.27,154.26,54.9655619]
[1748895379817,8.00515417,154.27,154.26,6.4825619]
[1748895380012,46.18904366,154.27,154.25,10.62]
[1748895380218,8.00515417,154.27,154.26,40.28]
[1748895380408,8.00515417,154.27,154.26,40.3]
[1748895381404,8.00515417,154.27,154.25,17.10297878]
[1748895381632,38.18388949,154.26,154.25,10.62]
[1748895381813,38.18388949,154.26,154.25,50.92]
[1748895382019,38.18388949,154.26,154.25,50.94]
[1748895382329,38.18388949,154.26,154.25,10.62]
[1748895388846,28.18388949,154.26,154.25,10.62]
[1748895389717,8.00515417,154.27,154.25,10.62]
[1748895389916,38.18388949,154.26,154.25,10.62]
[1748895392125,46.18904366,154.27,154.25,57.34273801]
[1748895392446,8.00515417,154.27,154.25,57.34273801]
[1748895395440,8.00515417,154.27,154.26,22.91836947]
[1748895397323,8.00515417,154.27,154.26,29.40093137]
[1748895398543,8.00515417,154.27,154.26,6.4825619]
[1748895400938,30.92352364,154.27,154.26,40.18]
[1748895401317,30.92352364,154.27,154.25,10.62]
[1748895401521,22.91836947,154.26,154.25,57.28289353]
[1748895402038,22.91836947,154.26,154.25,10.62]
[1748895406851,8.00515417,154.27,154.25,10.62]
[1748895407025,22.91836947,154.26,154.25,10.62]
[1748895407921,1.6122,154.25,154.18,10.62]
[1748895408125,22.91836947,154.24,154.19,40.12]
[1748895408427,22.91836947,154.24,154.19,38.124]
[1748895408944,29.40178987,154.24,154.19,40.12]
[1748895409331,22.91836947,154.2,154.19,40.12]
[1748895412318,22.91836947,154.2,154.18,10.62]
[1748895412650,22.91836947,154.19,154.18,10.62]
[1748895412825,22.91836947,154.19,154.18,50.74]
[1748895413327,22.91836947,154.19,154.18,57.22592554]
[1748895414849,22.91836947,154.2,154.18,57.22592554]
[1748895415046,26.0,154.24,154.18,57.22592554]
[1748895415250,22.91836947,154.19,154.18,17.12592554]
[1748895415450,22.91836947,154.19,154.18,57.24592554]
[1748895415631,22.91836947,154.19,154.18,50.76]
[1748895415953,22.91836947,154.19,154.18,57.24592554]
[1748895420737,22.91836947,154.19,154.18,57.26592554]
[1748895421654,22.91836947,154.19,154.18,50.78]
[1748895421953,22.91836947,154.19,154.18,57.26592554]
[1748895422965,22.91836947,154.19,154.12,24.01428841]
[1748895423170,22.91836947,154.14,154.13,10.54]
[1748895423371,146.4,154.2,154.13,50.68]
[1748895423529,22.91836947,154.19,154.15,22.91836947]
[1748895423733,22.91836947,154.19,154.16,40.14]
[1748895424960,22.91836947,154.19,154.17,6.48634624]
[1748895425540,26.0,154.23,154.18,10.54]
[1748895425883,22.91836947,154.21,154.19,40.14]
[1748895426035,22.91836947,154.2,154.13,6.48802958]
[1748895426241,22.91836947,154.15,154.14,10.54]
[1748895426555,22.91836947,154.15,154.14,50.68]
[1748895426738,22.91836947,154.16,154.14,50.68]
[1748895427158,22.91836947,154.16,154.15,6.4871878]
[1748895427355,22.91836947,154.16,154.14,17.02745668]
[1748895427560,22.91836947,154.15,154.14,17.02745668]
[1748895427759,22.91836947,154.15,154.14,57.16745668]
[1748895428471,22.91836947,154.15,154.14,50.68]
[1748895429172,1.6284,154.19,154.14,50.68]
[1748895429365,22.91836947,154.15,154.14,50.68]
[1748895429753,1.6284,154.19,154.14,10.54]
[1748895429969,1.6284,154.19,154.14,50.68]
[1748895429970,22.91836947,154.15,154.14,50.68]
[1748895431468,22.91836947,154.15,154.1,93.36]
[1748895431676,22.91836947,154.11,154.08,10.54]
[1748895431848,22.91836947,154.09,154.08,50.68]
[1748895432469,22.91836947,154.09,154.08,57.17003975]
[1748895432770,22.91836947,154.1,154.08,57.17003975]
[1748895432969,22.91836947,154.09,154.08,50.68]
[1748895434282,22.91836947,154.11,154.08,57.17013499]
[1748895435052,22.91836947,154.1,154.08,57.17013499]
[1748895435653,22.91836947,154.09,154.08,50.68]
[1748895435872,22.91836947,154.09,154.08,57.17013499]
[1748895436673,22.91836947,154.09,154.08,17.03013499]
[1748895436872,22.91836947,154.09,154.08,57.17013499]
[1748895439076,178.88771695,154.14,154.08,57.17013499]
[1748895439278,22.91836947,154.09,154.08,57.17013499]
[1748895441185,44.67298743,154.16,154.09,26.69964886]
[1748895441186,20.09421796,154.16,154.09,26.69964886]
[1748895441355,20.09421796,154.16,154.14,22.91836947]
[1748895441552,20.09421796,154.16,154.15,50.68]
[1748895441955,20.09421796,154.16,154.15,73.59836947]
[1748895442189,22.91836947,154.21,154.15,73.59836947]
[1748895442492,26.0,154.23,154.18,22.91836947]
[1748895442781,26.0,154.23,154.19,40.14]
[1748895442987,22.91836947,154.22,154.19,40.14]
[1748895443375,22.91836947,154.22,154.2,6.4850843]
[1748895444770,22.91836947,154.23,154.2,6.4850843]
[1748895445087,22.91836947,154.22,154.2,6.4850843]
[1748895447074,22.91836947,154.21,154.2,6.4850843]
[1748895447565,22.91836947,154.21,154.19,40.14]
[1748895447762,22.91836947,154.21,154.19,46.62534612]
[1748895448765,22.91836947,154.21,154.19,40.14]
[1748895448963,22.91836947,154.21,154.2,40.14]
[1748895449890,22.91836947,154.21,154.18,10.54]
[1748895450100,26.0,154.23,154.15,6.48701526]
[1748895450101,22.91836947,154.19,154.15,6.48701526]
[1748895450393,22.91836947,154.16,154.15,6.48701526]
[1748895450768,22.91836947,154.16,154.15,46.62701526]
[1748895450982,146.4,154.21,154.15,6.48701526]
[1748895451180,22.91836947,154.19,154.16,40.14]
[1748895451379,22.91836947,154.19,154.17,6.48634624]
[1748895451784,22.91836947,154.2,154.17,6.48634624]
[1748895451982,146.4,154.21,154.17,6.48634624]
[1748895452190,22.91836947,154.2,154.17,6.48634624]
[1748895452580,22.91836947,154.19,154.17,6.48634624]
[1748895453195,22.91836947,154.18,154.17,6.48634624]
[1748895453420,22.91836947,154.18,154.17,40.14]
[1748895454385,22.91836947,154.19,154.17,40.14]
[1748895455375,22.91836947,154.19,154.17,46.62623439]
[1748895455891,22.91836947,154.19,154.17,6.48623439]
[1748895456072,22.91836947,154.19,154.17,46.62623439]
[1748895456697,146.4,154.21,154.17,46.62623439]
[1748895456883,22.91836947,154.2,154.17,46.62623439]
[1748895457202,1.6391,154.24,154.17,85.76046946]
[1748895457401,22.91836947,154.23,154.19,29.40387436]
[1748895457601,22.91836947,154.23,154.2,50.68]
[1748895459296,22.91836947,154.22,154.2,50.68]
[1748895460012,22.91836947,154.22,154.21,6.48466377]
[1748895460803,22.91836947,154.23,154.21,6.48466377]
[1748895461690,172.4,154.25,154.21,6.48466377]
[1748895461991,22.91836947,154.24,154.21,6.48466377]
[1748895462589,22.91836947,154.23,154.21,6.48466377]
[1748895463605,22.91836947,154.22,154.21,40.12]
[1748895463817,22.91836947,154.22,154.2,6.48497849]
[1748895463988,146.4,154.25,154.21,40.12]
[1748895464305,22.91836947,154.22,154.21,40.12]
[1748895466412,22.91836947,154.22,154.19,50.66]
[1748895466582,22.91836947,154.2,154.19,50.66]
[1748895466787,22.91836947,154.2,154.19,10.54]
[1748895466987,22.91836947,154.2,154.19,50.66]
[1748895467402,22.91836947,154.2,154.15,10.54]
[1748895467607,22.91836947,154.16,154.15,50.66]
[1748895468191,22.91836947,154.19,154.16,6.48676699]
[1748895468431,22.91836947,154.18,154.16,6.48676699]
[1748895470406,22.91836947,154.17,154.16,6.48676699]
[1748895470720,27.6448,154.21,154.16,6.48676699]
[1748895470896,22.91836947,154.17,154.16,6.48676699]
[1748895471215,22.91836947,154.17,154.15,10.54]
[1748895471407,22.91836947,154.16,154.15,10.54]
[1748895472015,26.0,154.19,154.15,17.0271878]
[1748895472191,1.6448,154.21,154.15,17.0271878]
[1748895472192,22.91836947,154.18,154.15,17.0271878]
[1748895476020,22.91836947,154.17,154.15,17.0271878]
[1748895476220,22.91836947,154.16,154.15,10.54]
[1748895476423,22.91836947,154.16,154.11,6.48887158]
[1748895476620,22.91836947,154.14,154.12,50.66]
[1748895477206,22.91836947,154.14,154.12,10.54]
[1748895477408,22.91836947,154.14,154.13,40.12]
[1748895477803,22.91836947,154.14,154.12,57.14842246]
[1748895478121,22.91836947,154.13,154.12,57.14842246]
[1748895478318,22.91836947,154.14,154.12,57.14842246]
[1748895479922,26.0,154.17,154.12,73.36954885]
[1748895480225,22.91836947,154.17,154.12,96.28791832]
[1748895481027,172.4,154.19,154.13,22.91836947]
[1748895481228,22.91836947,154.2,154.16,6.48676699]
[1748895481423,146.4,154.23,154.17,50.66]
[1748895481606,22.91836947,154.22,154.17,73.57836947]
[1748895481924,8.17931778,154.26,154.2,22.91836947]
[1748895482097,31.09768725,154.26,154.21,63.03836947]
[1748895482302,57.09768725,154.26,154.22,10.54]
[1748895482806,22.91836947,154.25,154.22,10.54]
[1748895483309,30.92352364,154.27,154.24,6.48340248]
[1748895483507,30.92352364,154.27,154.24,46.60340248]
[1748895485441,8.00515417,154.27,154.26,38.20277847]
[1748895485923,8.00515417,154.27,154.26,57.13675047]
[1748895486302,8.00515417,154.27,154.26,38.20277847]
[1748895486524,8.00515417,154.27,154.26,78.32277847]
[1748895487340,8.00515417,154.27,154.26,84.80534037]
[1748895487508,38.20277847,154.31,154.26,84.80534037]
[1748895487710,152.68339834,154.37,154.3,38.20277847]
[1748895488037,148.0432,154.37,154.31,78.32277847]
[1748895488202,38.20277847,154.35,154.32,10.52]
[1748895489102,38.20277847,154.38,154.34,38.20277847]
[1748895489308,38.6067427,154.41,154.35,40.1]
[1748895489609,38.20277847,154.38,154.35,40.1]
[1748895490017,38.20277847,154.37,154.35,40.1]
[1748895490901,38.6067427,154.41,154.27,22.62511862]
[1748895490902,38.20277847,154.36,154.27,22.62511862]
[1748895491101,38.20277847,154.32,154.28,73.3060254]
[1748895491328,38.20277847,154.33,154.29,38.20277847]
[1748895491539,38.20277847,154.34,154.29,38.20277847]
[1748895492126,26.0,154.38,154.28,95.30450001]
[1748895492127,38.20277847,154.32,154.28,95.30450001]
[1748895492332,38.20277847,154.32,154.28,57.10172154]
[1748895492509,38.20277847,154.33,154.28,95.30450001]
[1748895493127,38.20277847,154.32,154.28,95.30450001]
[1748895493517,38.20277847,154.31,154.29,40.1]
[1748895493922,38.20277847,154.31,154.28,17.00172154]
[1748895494230,38.20277847,154.31,154.3,40.1]
[1748895494614,38.20277847,154.32,154.3,40.1]
[1748895494810,38.20277847,154.33,154.3,40.1]
[1748895495039,38.20277847,154.33,154.31,6.4804614]
[1748895495621,38.20277847,154.32,154.3,46.58076283]
[1748895495829,38.20277847,154.31,154.3,40.1]
[1748895496531,38.20277847,154.31,154.3,46.58088139]
[1748895496719,38.20277847,154.31,154.29,10.52]
[1748895496928,38.20277847,154.3,154.29,10.52]
[1748895497737,102.40555694,154.3,154.23,6.48382286]
[1748895497948,38.20277847,154.24,154.23,10.52]
[1748895498111,38.20277847,154.24,154.23,50.72]
[1748895498736,38.20277847,154.25,154.23,50.72]
[1748895498910,38.20277847,154.26,154.23,50.72]
[1748895499108,38.20277847,154.26,154.24,6.48340248]
[1748895499513,26.0,154.3,154.24,6.48340248]
[1748895499712,38.20277847,154.26,154.24,6.48340248]
[1748895499946,8.11495134,154.32,154.24,44.68618095]
[1748895500103,38.20277847,154.3,154.25,38.20277847]
[1748895500308,38.20277847,154.3,154.26,40.2]
[1748895500721,38.20277847,154.29,154.26,40.2]